bitfinex/quotes_ETHUSD_20250724
["timestamp","ask_amount","ask_price","bid_price","bid_amount"]
[1753321231483,13.89146673,3642.9,3642.6,0.001]
[1753321231688,43.89146673,3642.9,3642.6,0.001]
[1753321231990,43.89129121,3642.9,3642.6,0.001]
[1753321235494,2.74559332,3642.2,3642.1,0.04]
[1753321235695,52.9261485,3642.2,3642.1,0.04]
[1753321235891,54.16592859,3642.2,3642.1,0.04]
[1753321236201,2.74581948,3641.9,3641.8,0.001]
[1753321236389,41.03639842,3641.9,3641.8,0.001]
[1753321236574,41.78275558,3641.9,3641.8,0.001]
[1753321236770,41.46037568,3641.9,3641.8,0.001]
[1753321237605,41.25091948,3641.9,3641.8,0.001]
[1753321237908,41.25091948,3641.9,3641.1,0.04]
[1753321237909,36.50024735,3641.2,3641.1,0.04]
[1753321238132,47.05448262,3641.2,3641.1,0.04]
[1753321238278,47.37786252,3641.2,3641.1,0.04]
[1753321238600,47.83516252,3641.2,3641.1,0.04]
[1753321238910,3.0,3641.1,3640.1,0.041]
[1753321239071,3.0,3640.3,3640.1,0.041]
[1753321239273,10.86533877,3640.2,3640.1,0.041]
[1753321239486,10.831,3640.2,3640.1,0.041]
[1753321240028,47.9498018,3640.2,3640.1,0.041]
[1753321241189,9.7348,3640.2,3640.1,0.041]
[1753321241400,17.1702018,3640.2,3640.1,0.041]
[1753321241604,47.1702018,3640.2,3640.1,0.041]
[1753321242929,43.9738,3640.2,3640.1,0.041]
[1753321243094,47.1732018,3640.2,3640.1,0.041]
[1753321243497,48.0003018,3640.2,3640.1,0.041]
[1753321244022,48.35018732,3640.2,3640.1,0.041]
[1753321244308,48.0003018,3640.2,3640.1,0.041]
[1753321244621,47.5480018,3640.2,3640.1,0.041]
[1753321244823,48.0003018,3640.2,3640.1,0.041]
[1753321245233,48.35018732,3640.2,3640.1,0.041]
[1753321245391,43.3090018,3640.2,3640.1,0.041]
[1753321245594,47.5540018,3640.2,3640.1,0.041]
[1753321245821,43.7653018,3640.2,3640.1,0.041]
[1753321246024,45.2602,3640.2,3640.1,0.041]
[1753321246204,48.0073018,3640.2,3640.1,0.041]
[1753321247103,9.7388,3640.2,3640.1,0.041]
[1753321247308,13.9798,3640.2,3640.1,0.041]
[1753321247712,12.4859018,3640.2,3640.1,0.041]
[1753321247936,16.7269018,3640.2,3640.1,0.041]
[1753321248514,13.9798,3640.2,3640.1,0.041]
[1753321248839,3.1368,3640.2,3640.1,0.041]
[1753321249062,13.9798,3640.2,3640.1,1.2615]
[1753321249552,3.1368,3640.2,3640.1,4.00867727]
[1753321249754,4.24,3640.2,3640.1,4.00867727]
[1753321249917,6.602,3640.3,3640.2,2.7471018]
[1753321250118,10.843,3640.3,3640.2,3.2168018]
[1753321250328,13.843,3640.3,3640.2,3.2168018]
[1753321250623,15.42158974,3641.6,3640.2,0.4697]
[1753321250947,0.1368,3641.0,3640.8,2.74659862]
[1753321251127,3.0,3640.8,3640.7,2.74669792]
[1753321251336,3.0,3640.8,3640.6,2.74678225]
[1753321251522,0.1368,3641.0,3640.7,2.74667506]
[1753321251725,0.1368,3641.0,3640.8,2.74664908]
[1753321251924,32.74580144,3642.0,3641.0,3.56828201]
[1753321252149,3.0,3641.6,3641.0,0.8218]
[1753321252308,2.74598012,3641.7,3641.0,3.56824383]
[1753321252309,4.28632651,3641.5,3641.0,3.56824383]
[1753321252512,4.28632651,3641.5,3641.1,2.746414]
[1753321252738,3.0,3641.4,3641.1,2.746414]
[1753321252967,3.19821937,3641.8,3641.0,0.8218]
[1753321252968,4.252,3641.3,3641.0,0.8218]
[1753321253554,7.252,3641.3,3641.2,2.74634735]
[1753321253928,7.252,3641.3,3641.1,2.74640774]
[1753321255149,7.252,3641.3,3641.0,3.56828486]
[1753321255450,7.252,3641.3,3641.0,0.8218]
[1753321255655,3.0,3641.3,3641.2,2.74634735]
[1753321255856,7.248,3641.3,3641.2,2.74634735]
[1753321256058,7.248,3641.3,3641.2,3.21604735]
[1753321256830,7.248,3641.3,3641.2,0.4697]
[1753321257018,7.248,3641.3,3641.1,2.74640908]
[1753321258748,7.248,3641.3,3641.2,2.74634735]
[1753321259058,7.248,3641.3,3641.1,2.74640311]
[1753321259776,7.248,3641.3,3641.0,3.56827692]
[1753321260257,7.248,3641.3,3641.1,2.74641929]
[1753321261350,7.248,3641.3,3641.1,2.74640019]
[1753321261556,7.248,3641.3,3641.0,3.5682474]
[1753321261726,7.248,3641.3,3641.2,2.74634735]
[1753321262157,7.248,3641.3,3641.1,2.74640873]
[1753321262318,3.03432934,3641.2,3640.4,0.8011]
[1753321262524,3.03432934,3641.2,3640.1,0.041]
[1753321262525,3.0,3640.6,3640.1,0.041]
[1753321262757,4.242,3640.5,3640.2,2.7470447]
[1753321263056,4.243,3640.4,3640.3,0.4697]
[1753321263247,4.243,3640.4,3640.3,3.35352634]
[1753321263443,4.243,3640.4,3640.3,0.1368]
[1753321263644,4.6953,3640.4,3640.1,0.041]
[1753321264320,4.243,3640.4,3640.1,0.041]
[1753321264526,4.243,3640.4,3640.1,2.78811058]
[1753321265031,4.243,3640.4,3640.1,2.78815983]
[1753321265427,4.243,3640.4,3640.1,0.041]
[1753321266226,4.243,3640.4,3640.1,2.78816303]
[1753321266938,4.243,3640.4,3640.1,0.041]
[1753321268151,4.243,3640.4,3640.1,2.78815737]
[1753321268348,4.241,3640.3,3640.1,0.041]
[1753321268565,4.241,3640.3,3640.2,2.74705456]
[1753321268961,0.1368,3640.5,3640.2,0.4697]
[1753321269167,4.241,3640.4,3640.3,2.74702634]
[1753321274596,4.6737,3640.4,3640.1,0.041]
[1753321274795,3.03433782,3640.3,3640.1,0.041]
[1753321274996,3.46703782,3640.3,3640.1,0.041]
[1753321275402,3.03433782,3640.3,3640.1,0.041]
[1753321276030,0.4327,3640.2,3640.1,0.041]
[1753321276400,3.1368,3640.3,3640.1,0.041]
[1753321278417,7.235,3640.2,3640.1,0.041]
[1753321280011,7.235,3640.2,3640.1,2.78817727]
[1753321280012,7.233,3640.2,3640.1,2.78817727]
[1753321280230,7.233,3640.2,3640.1,3.22427727]
[1753321280544,7.233,3640.2,3640.1,2.78817727]
[1753321280721,7.233,3640.2,3640.1,0.041]
[1753321281129,10.4128018,3640.2,3640.1,0.041]
[1753321281304,10.76268732,3640.2,3640.1,0.041]
[1753321281656,11.2387018,3640.2,3640.1,0.041]
[1753321282111,41.2387018,3640.2,3640.1,0.041]
[1753321284519,41.44057719,3640.2,3640.1,0.041]
[1753321287145,41.2387018,3640.2,3640.1,0.041]
[1753321287847,41.58858732,3640.2,3640.1,0.041]
[1753321288214,11.58858732,3640.2,3640.1,0.041]
[1753321288415,41.58858732,3640.2,3640.1,0.041]
[1753321288880,56.08858732,3640.2,3640.1,0.041]
[1753321292529,26.08858732,3640.2,3640.1,0.041]
[1753321292848,56.08858732,3640.2,3640.1,0.041]
[1753321294429,55.7387018,3640.2,3640.1,0.041]
[1753321295923,51.5057018,3640.2,3640.1,0.041]
[1753321296122,55.7387018,3640.2,3640.1,0.041]
[1753321297333,5.74770566,3639.4,3639.3,0.001]
[1753321297521,9.98170566,3639.4,3639.3,0.001]
[1753321297721,10.41440566,3639.4,3639.3,0.001]
[1753321298942,9.98170566,3639.4,3639.3,0.001]
[1753321299256,9.98070566,3639.4,3639.3,0.001]
[1753321301761,16.58470566,3639.4,3639.3,0.001]
[1753321301963,13.9738,3639.4,3639.3,0.7546]
[1753321302151,13.9738,3639.4,3639.3,1.2152]
[1753321302555,13.9738,3639.4,3639.3,0.7546]
[1753321303459,9.7408,3639.4,3639.3,0.7546]
[1753321303663,10.9748,3639.4,3639.3,3.96298116]
[1753321303854,10.9748,3639.4,3639.3,1.2152]
[1753321304054,13.9748,3639.4,3639.3,1.2152]
[1753321304477,6.604,3639.4,3639.3,4.47556341]
[1753321304772,10.837,3639.4,3639.3,4.61236341]
[1753321305242,6.604,3639.4,3639.3,4.61236341]
[1753321305449,10.837,3639.4,3639.3,4.61236341]
[1753321305755,1.2656,3641.0,3639.3,4.61236341]
[1753321305756,2.74672956,3640.7,3640.1,0.768]
[1753321305956,3.0,3640.5,3640.1,0.768]
[1753321306272,3.0,3640.3,3640.1,3.97576108]
[1753321306475,7.233,3640.2,3640.1,3.51516108]
[1753321307185,7.233,3640.2,3640.1,3.97576108]
[1753321308465,7.233,3640.2,3640.1,1.2286]
[1753321308781,3.0,3640.1,3639.8,0.8037]
[1753321309016,6.33083022,3640.5,3639.7,0.4606]
[1753321309017,4.26734065,3640.0,3639.7,2.88426994]
[1753321309220,0.1368,3640.3,3639.9,2.74728257]
[1753321309387,3.0,3640.1,3640.0,3.20784739]
[1753321309590,3.0,3640.1,3640.0,3.34464739]
[1753321309809,3.0,3640.8,3640.5,2.74680683]
[1753321310009,3.0,3640.6,3640.5,3.20740683]
[1753321310394,6.604,3640.9,3640.6,2.74673601]
[1753321310597,6.604,3640.9,3640.5,3.20740683]
[1753321310598,4.233,3640.8,3640.7,2.74670244]
[1753321310798,7.233,3640.8,3640.7,2.74670244]
[1753321311012,3.0,3640.7,3640.3,3.34441405]
[1753321311324,4.233,3640.6,3640.5,2.74682342]
[1753321311535,3.0,3640.8,3640.7,2.74672453]
[1753321311736,3.0,3640.8,3640.7,4.02962453]
[1753321311737,7.232,3640.8,3640.7,4.02962453]
[1753321312033,4.232,3640.8,3640.7,4.84407453]
[1753321316542,6.604,3640.9,3640.8,2.74664908]
[1753321316742,6.604,3640.9,3640.8,3.95754908]
[1753321316910,10.836,3640.9,3640.8,3.95754908]
[1753321318807,4.232,3640.9,3640.8,3.95754908]
[1753321319011,4.232,3640.9,3640.8,4.98410898]
[1753321320262,4.232,3640.9,3640.8,4.52350898]
[1753321320446,4.232,3640.9,3640.8,4.98410898]
[1753321320635,0.002,3641.1,3640.8,4.98410898]
[1753321320834,0.002,3641.1,3641.0,2.88329821]
[1753321321347,4.233,3641.1,3641.0,4.47307638]
[1753321321556,0.002,3641.1,3641.0,5.22837638]
[1753321321756,4.233,3641.1,3641.0,5.22837638]
[1753321322775,1e-08,3641.1,3641.0,5.79180757]
[1753321323064,1e-08,3641.1,3641.0,5.77837638]
[1753321328058,1e-08,3641.1,3641.0,5.22837638]
[1753321328392,1e-08,3641.1,3641.0,3.63859821]
[1753321328783,1e-08,3641.1,3641.0,4.09919821]
[1753321329091,1e-08,3641.1,3641.0,4.1126294]
[1753321331804,1e-08,3641.1,3641.0,4.64919821]
[1753321332906,1e-08,3641.1,3641.0,4.6626294]
[1753321333207,1e-08,3641.1,3641.0,6.45964027]
[1753321333371,1e-08,3641.1,3641.0,6.44620908]
[1753321333573,1e-08,3641.1,3641.0,9.44620908]
[1753321336314,0.002,3642.6,3642.5,2.74536719]
[1753321336618,0.002,3642.6,3642.5,3.38865225]
[1753321336818,0.002,3642.6,3642.5,3.96975225]
[1753321338321,0.002,3642.6,3642.5,3.95634934]
[1753321338824,0.002,3642.6,3642.5,3.51204934]
[1753321342117,0.4379,3642.6,3642.5,0.1368]
[1753321342319,0.8226,3642.6,3642.5,2.88216719]
[1753321342639,0.002,3642.6,3642.5,2.88216719]
[1753321346742,0.4379,3642.6,3642.5,2.88216719]
[1753321346943,1.2246,3642.6,3642.5,0.1368]
[1753321347334,1.2246,3642.6,3642.5,2.88216719]
[1753321349947,1.2246,3642.6,3642.5,0.1368]
[1753321350152,1.2246,3642.6,3642.5,2.88216719]
[1753321350963,0.002,3642.6,3642.5,2.88216719]
[1753321351167,0.002,3642.6,3642.5,3.45833215]
[1753321351462,0.4379,3642.6,3642.5,0.1368]
[1753321351640,1.1954,3642.6,3642.5,0.1368]
[1753321352533,1.1954,3642.6,3641.5,3.53637717]
[1753321352534,1.1954,3642.6,3642.4,2.74541814]
[1753321352767,0.4359,3642.5,3642.4,2.74541814]
[1753321353141,0.7595,3642.6,3642.5,2.74536719]
[1753321353142,0.002,3642.6,3642.5,2.74536719]
[1753321353545,0.002,3642.6,3642.4,0.1368]
[1753321353546,0.4379,3642.6,3642.4,0.1368]
[1753321353735,0.4379,3642.6,3642.4,2.88223398]
[1753321353736,0.47221614,3642.6,3642.4,2.88223398]
[1753321353940,0.4379,3642.6,3642.4,2.88223398]
[1753321354160,0.4379,3642.6,3642.5,2.74536719]
[1753321356073,0.002,3642.6,3642.5,2.74536719]
[1753321356369,0.002,3642.6,3642.5,3.38364731]
[1753321356537,0.002,3642.6,3642.5,4.63764731]
[1753321356740,0.002,3642.6,3642.5,4.65105022]
[1753321356940,0.002,3642.6,3642.5,4.63764731]
[1753321357553,0.002,3642.6,3642.5,4.65105022]
[1753321357751,0.002,3642.6,3642.5,4.63764731]
[1753321357952,0.002,3642.6,3642.5,4.19334731]
[1753321358373,0.002,3642.6,3642.5,3.38364731]
[1753321358577,0.002,3642.6,3642.5,2.74536719]
[1753321358886,0.4379,3642.6,3642.5,2.74536719]
[1753321359765,0.002,3642.6,3642.5,2.74536719]
[1753321360171,0.002,3642.6,3642.5,4.0175701]
[1753321360986,0.002,3643.4,3642.5,11.7945701]
[1753321361149,0.002,3643.4,3643.3,2.74476436]
[1753321361350,1e-08,3643.4,3643.3,6.9851522]
[1753321361575,1e-08,3643.4,3643.3,8.20226436]
[1753321361779,1e-08,3643.4,3643.3,8.75226436]
[1753321364470,1e-08,3643.4,3643.3,3.54186436]
[1753321364652,1e-08,3643.4,3643.3,3.64793511]
[1753321364854,1e-08,3643.4,3643.3,7.87393511]
[1753321366063,1e-08,3643.4,3643.3,8.30733511]
[1753321368772,1e-08,3643.4,3643.3,8.30633511]
[1753321369173,1e-08,3643.4,3643.3,9.64923511]
[1753321369505,1e-08,3643.4,3643.3,5.42423511]
[1753321369802,1e-08,3643.4,3643.3,9.64923511]
[1753321370198,1e-08,3643.4,3643.3,5.42423511]
[1753321370404,1e-08,3643.4,3643.3,9.64923511]
[1753321370974,1e-08,3643.4,3643.3,5.42423511]
[1753321371181,1e-08,3643.4,3643.3,9.78603511]
[1753321371966,1e-08,3643.4,3643.3,5.56103511]
[1753321372174,1e-08,3643.4,3643.3,9.78603511]
[1753321384907,1e-08,3643.4,3643.3,9.78503511]
[1753321386308,1e-08,3643.4,3643.3,9.35163511]
[1753321386510,1e-08,3643.4,3643.3,8.00873511]
[1753321386712,1.27210001,3643.4,3643.3,7.10556436]
[1753321387408,0.45190001,3643.4,3643.3,7.10556436]
[1753321387613,1e-08,3643.4,3643.3,2.88156436]
[1753321387791,0.45190001,3643.4,3643.3,7.10556436]
[1753321387995,0.45190001,3643.4,3643.3,2.88156436]
[1753321388195,0.45190001,3643.4,3643.3,7.10556436]
[1753321388996,1e-08,3643.4,3643.3,2.88156436]
[1753321389214,0.43550001,3643.4,3643.3,7.10556436]
[1753321389721,0.43550001,3643.4,3643.3,2.88156436]
[1753321389924,0.43550001,3643.4,3643.3,7.10556436]
[1753321391219,0.43550001,3643.4,3643.3,2.88156436]
[1753321391419,1.20510001,3643.4,3643.3,2.88156436]
[1753321392414,1.20510001,3643.4,3643.3,2.88256436]
[1753321394633,1.20510001,3643.4,3643.3,0.1378]
[1753321394794,1.20510001,3643.4,3643.3,0.001]
[1753321398126,1.20510001,3643.4,3643.3,2.74576436]
[1753321398429,1.20510001,3643.4,3643.3,2.88256436]
[1753321401324,1.20510001,3643.4,3643.3,0.001]
[1753321402432,1.23940862,3643.4,3643.3,0.001]
[1753321403230,1.20510001,3643.4,3643.3,0.001]
[1753321404034,1.23940862,3643.4,3643.3,0.001]
[1753321405030,4.08658903,3643.4,3643.3,0.001]
[1753321406214,1.34190001,3643.4,3643.3,0.001]
[1753321408442,1.20510001,3643.4,3643.3,2.74576436]
[1753321409049,1.20510001,3643.4,3643.3,0.001]
[1753321409950,1.23940862,3643.4,3643.3,0.001]
[1753321410114,1.23940862,3643.4,3643.3,2.74576436]
[1753321410309,1.20510001,3643.4,3643.3,0.001]
[1753321411664,1.23940862,3643.4,3643.3,0.001]
[1753321411838,1.34190001,3643.4,3643.3,0.001]
[1753321412342,0.43550001,3643.4,3643.3,0.001]
[1753321412541,0.46980862,3643.4,3643.3,0.001]
[1753321413136,0.43550001,3643.4,3643.3,0.001]
[1753321413337,0.46980862,3643.4,3643.3,0.001]
[1753321414364,0.43550001,3643.4,3643.3,0.001]
[1753321415230,0.46980862,3643.4,3643.3,0.001]
[1753321416053,0.43550001,3643.4,3643.3,0.001]
[1753321416372,1.38640001,3643.4,3643.3,0.001]
[1753321417443,1.24960001,3643.4,3643.3,0.001]
[1753321419155,1.28390862,3643.4,3643.3,0.001]
[1753321419359,1.38640001,3643.4,3643.3,0.001]
[1753321423335,1.24960001,3643.4,3643.3,0.001]
[1753321423532,1.28390862,3643.4,3643.3,0.001]
[1753321423733,1.24960001,3643.4,3643.3,0.001]
[1753321423933,1.38640001,3643.4,3643.3,0.001]
[1753321425838,1.24960001,3643.4,3643.3,2.74576436]
[1753321426038,1.24960001,3643.4,3643.3,0.001]
[1753321426272,1.28390862,3643.4,3643.3,0.001]
[1753321426571,4.28390862,3643.4,3643.3,0.001]
[1753321426941,4.24960001,3643.4,3643.3,0.001]
[1753321427337,4.28390862,3643.4,3643.3,0.001]
[1753321427570,7.02859764,3643.4,3643.3,0.001]
[1753321427770,4.24960001,3643.4,3643.3,0.001]
[1753321427977,7.02859764,3643.4,3643.3,0.001]
[1753321428142,6.99428903,3643.4,3643.3,0.001]
[1753321428341,4.24960001,3643.4,3643.3,0.001]
[1753321428545,4.28390862,3643.4,3643.3,0.001]
[1753321430171,7.02859764,3643.4,3643.3,0.001]
[1753321430374,6.99428903,3643.4,3643.3,0.001]
[1753321430680,36.99428903,3643.4,3643.3,0.001]
[1753321431062,37.58471709,3643.4,3643.3,0.001]
[1753321431387,36.99428903,3643.4,3643.3,0.001]
[1753321437384,6.99428903,3643.4,3643.3,0.001]
[1753321437579,36.99428903,3643.4,3643.3,0.001]
[1753321437948,5.74529182,3642.6,3642.5,0.001]
[1753321438179,47.04553034,3642.6,3642.5,0.001]
[1753321438487,47.49673034,3642.6,3642.5,0.001]
[1753321441097,11.18089182,3642.6,3642.5,0.001]
[1753321441298,6.597,3642.7,3642.5,0.001]
[1753321441613,4.222,3642.6,3642.5,0.001]
[1753321441915,9.96729182,3642.6,3642.5,0.001]
[1753321442407,10.41849182,3642.6,3642.5,0.001]
[1753321443112,7.6732,3642.6,3642.5,0.001]
[1753321443317,4.223,3642.6,3642.5,0.001]
[1753321443782,7.223,3642.6,3642.5,0.001]
[1753321444481,10.41949182,3642.6,3642.5,0.001]
[1753321444899,11.20519182,3642.6,3642.5,0.001]
[1753321446225,8.4599,3642.6,3642.5,0.001]
[1753321446887,7.6742,3642.6,3642.5,0.001]
[1753321447205,7.222,3642.6,3642.5,0.001]
[1753321447801,3.0,3642.6,3642.5,0.001]
[1753321447999,7.222,3642.6,3642.5,0.001]
[1753321448498,7.222,3642.6,3642.5,2.74636719]
[1753321448703,7.222,3642.6,3642.5,3.49826719]
[1753321448902,3.0,3642.6,3642.5,3.49826719]
[1753321449105,9.597,3642.7,3642.6,2.74529182]
[1753321449306,1e-08,3643.4,3643.0,2.7449476]
[1753321449492,4.222,3643.3,3642.6,0.4646]
[1753321449692,3.03431049,3643.2,3642.8,0.1368]
[1753321449996,3.0,3643.0,3642.9,2.74506574]
[1753321450196,3.0,3643.0,3642.8,2.88191733]
[1753321450402,4.222,3642.9,3642.8,2.88191733]
[1753321450972,4.71981332,3642.9,3642.5,0.7529]
[1753321451177,0.4635,3642.8,3642.5,3.49826284]
[1753321451480,4.222,3642.7,3642.5,3.49826284]
[1753321452486,0.4635,3642.6,3642.5,0.001]
[1753321452820,3.49781614,3642.6,3642.5,0.001]
[1753321453814,7.02450796,3642.6,3642.5,0.001]
[1753321454024,6.99019182,3642.6,3642.5,0.001]
[1753321459795,36.99019182,3642.6,3642.5,0.001]
[1753321459998,12.883158,3641.9,3641.8,0.001]
[1753321460190,17.104158,3641.9,3641.8,0.001]
[1753321460389,17.567658,3641.9,3641.8,0.001]
[1753321460797,14.82183852,3641.9,3641.8,0.001]
[1753321460998,7.221,3641.9,3641.8,0.001]
[1753321461520,7.221,3641.9,3641.8,2.74689488]
[1753321462324,7.221,3641.9,3641.8,0.001]
[1753321463216,7.221,3641.9,3641.8,2.74689488]
[1753321463694,7.221,3641.9,3641.8,0.001]
[1753321464622,4.221,3641.9,3641.8,2.74689488]
[1753321466624,4.221,3641.9,3641.8,0.001]
[1753321466924,4.221,3641.9,3641.8,2.88368879]
[1753321467127,4.221,3641.9,3641.8,4.31225387]
[1753321470134,3.6003,3642.7,3642.1,2.74561671]
[1753321470323,4.221,3642.6,3642.2,2.74559175]
[1753321470645,4.221,3642.6,3642.1,0.9265]
[1753321470834,4.221,3642.6,3642.2,2.74559332]
[1753321471498,2.74541398,3642.5,3642.1,0.9265]
[1753321471707,0.784,3642.3,3641.8,0.001]
[1753321471939,4.25531991,3642.2,3641.8,0.001]
[1753321472158,3.1368,3642.1,3641.8,0.001]
[1753321472452,7.221,3642.0,3641.9,2.74581948]
[1753321472865,7.221,3642.0,3641.8,0.1378]
[1753321473519,7.221,3642.0,3641.9,2.74581948]
[1753321475963,3.0,3641.9,3641.8,0.001]
[1753321476165,3.4635,3641.9,3641.8,0.001]
[1753321476465,2.74527662,3642.7,3641.8,0.001]
[1753321476466,0.7674,3642.8,3641.8,1.2499]
[1753321476663,3.0,3642.6,3641.8,3.99578626]
[1753321476828,3.0,3642.4,3641.8,1.2499]
[1753321477166,3.0,3642.2,3642.1,2.74562422]
[1753321477350,4.221,3642.2,3642.1,1.13873437]
[1753321477653,3.0,3642.8,3642.5,2.74534817]
[1753321477861,3.0,3642.6,3642.5,2.74534817]
[1753321480163,0.8125,3643.3,3642.8,2.74508293]
[1753321480335,0.8125,3643.3,3642.6,2.74529182]
[1753321480336,3.0,3643.1,3642.5,1.2534]
[1753321480541,0.8125,3643.3,3642.5,3.99872097]
[1753321480542,3.0,3642.9,3642.5,3.99872097]
[1753321480774,3.0,3642.7,3642.6,2.74529182]
[1753321480971,0.002,3643.3,3642.6,1.11810128]
[1753321481176,4.22,3643.2,3643.0,2.74491528]
[1753321481350,3.0,3643.1,3643.0,2.74491528]
[1753321482564,3.0,3643.1,3642.9,2.74505242]
[1753321482737,4.22,3643.0,3642.9,2.74505242]
[1753321485782,4.22,3643.0,3642.8,2.74512015]
[1753321486478,4.22,3643.0,3642.9,0.1368]
[1753321486871,4.22,3643.0,3642.9,2.88186574]
[1753321487956,4.22,3643.0,3642.9,0.1368]
[1753321488366,4.25431237,3643.0,3642.6,2.7452772]
[1753321488697,3.4433,3642.9,3642.6,2.88208971]
[1753321488855,4.219,3642.8,3642.6,2.88208971]
[1753321489056,4.219,3642.8,3642.7,2.74521646]
[1753321489554,4.219,3642.8,3642.6,2.88206272]
[1753321489980,4.219,3642.8,3642.7,2.74521646]
[1753321493094,4.219,3642.8,3642.6,0.1368]
[1753321493360,0.4776152,3642.7,3642.3,2.8822554]
[1753321493597,4.219,3642.6,3642.3,0.1368]
[1753321493778,0.47761708,3642.5,3642.3,0.1368]
[1753321494096,4.9958,3642.4,3642.1,0.1368]
[1753321494270,0.03431897,3642.3,3642.1,0.1368]
[1753321494469,4.219,3642.2,3642.1,0.1368]
[1753321494798,4.219,3642.2,3642.1,2.8824687]
[1753321496179,4.219,3642.2,3642.1,3.6664687]
[1753321496383,4.219,3642.2,3642.1,4.1101687]
[1753321496688,4.219,3642.2,3642.1,3.6664687]
[1753321499132,4.219,3642.2,3642.1,4.1101687]
[1753321500350,4.219,3642.2,3642.1,2.05019814]
[1753321500504,4.219,3642.2,3642.1,4.11011313]
[1753321500869,4.219,3642.4,3642.3,2.74551794]
[1753321501011,4.219,3642.4,3642.3,3.18921794]
[1753321501211,4.219,3642.4,3642.3,3.32601794]
[1753321501424,4.219,3642.4,3642.3,2.88231794]
[1753321502449,4.6623,3642.4,3642.3,0.1368]
[1753321504269,4.219,3642.4,3642.3,2.88231794]
[1753321504419,4.219,3642.4,3642.3,3.70351794]
[1753321504825,4.219,3642.4,3642.3,2.88231794]
[1753321507060,4.219,3642.4,3642.3,3.97093008]
[1753321507963,4.219,3642.4,3642.3,3.52723008]
[1753321508178,0.1368,3643.1,3642.9,2.74501555]
[1753321508400,7.219,3643.0,3642.9,2.74501555]
[1753321509274,7.219,3643.0,3642.8,2.74511622]
[1753321509469,7.6649,3643.0,3642.8,2.74511622]
[1753321509678,7.6649,3643.0,3642.7,2.88199741]
[1753321509886,0.48021332,3642.9,3642.7,2.88199741]
[1753321510181,0.4459,3642.9,3642.8,2.7451411]
[1753321511091,0.4459,3642.9,3642.7,2.88199101]
[1753321511651,0.4459,3642.9,3642.8,2.7451411]
[1753321511970,0.4459,3642.9,3642.7,2.88199435]
[1753321512390,0.4459,3642.9,3642.8,2.7451411]
[1753321512776,4.6639,3642.9,3642.8,2.7451411]
[1753321514194,4.6639,3642.9,3642.7,2.88196065]
[1753321514507,4.6639,3642.9,3642.8,2.7451411]
[1753321514800,4.218,3642.9,3642.8,2.7451411]
[1753321515464,4.218,3642.9,3642.7,0.1368]
[1753321515800,4.218,3642.9,3642.8,2.74509437]
[1753321516097,4.218,3642.9,3642.7,2.88199328]
[1753321516258,4.6639,3642.9,3642.7,2.88199328]
[1753321516465,4.69821332,3642.9,3642.7,2.88199328]
[1753321517673,4.6639,3642.9,3642.7,2.88199328]
[1753321518198,4.6639,3642.9,3642.8,2.7451411]
[1753321518374,4.218,3642.9,3642.8,2.7451411]
[1753321518576,4.218,3642.9,3642.7,0.1368]
[1753321518577,4.218,3642.9,3642.7,2.88198361]
[1753321518777,4.6639,3642.9,3642.7,2.88198361]
[1753321519594,4.218,3642.9,3642.7,2.88198361]
[1753321519800,0.4459,3642.8,3642.7,0.1368]
[1753321520371,0.4459,3642.8,3642.7,2.88201646]
[1753321520572,0.4459,3642.8,3642.7,0.1368]
[1753321521502,3.57047106,3642.7,3642.3,0.1368]
[1753321521802,7.44352213,3642.6,3642.3,0.1368]
[1753321522000,9.31483852,3642.5,3641.8,0.001]
[1753321522231,0.9021,3642.4,3641.8,0.1378]
[1753321522526,3.4459,3642.3,3641.9,2.74576192]
[1753321522690,4.6629,3642.2,3641.8,0.1378]
[1753321522894,0.03432085,3642.1,3641.8,0.1378]
[1753321523130,4.217,3642.0,3641.8,0.1378]
[1753321523713,4.6629,3642.0,3641.8,0.1378]
[1753321523914,0.4459,3641.9,3641.8,0.1378]
[1753321524242,4.217,3642.0,3641.8,0.1378]
[1753321524243,4.217,3642.0,3641.9,2.74581948]
[1753321524445,4.217,3642.0,3641.8,2.88366635]
[1753321524636,4.217,3642.0,3641.9,2.74581948]
[1753321525406,0.9021,3642.4,3641.8,0.1378]
[1753321525643,7.217,3642.3,3642.2,2.74556573]
[1753321526143,0.1368,3642.6,3642.0,0.9596]
[1753321526439,7.217,3642.5,3642.4,2.74539775]
[1753321526645,3.0,3642.5,3642.4,2.74539775]
[1753321526848,4.217,3642.5,3642.1,0.4534]
[1753321527013,4.217,3642.5,3642.4,2.88224256]
[1753321530425,4.217,3642.5,3642.4,4.15974256]
[1753321533024,3.0,3643.1,3643.0,2.74499039]
[1753321533224,7.217,3643.1,3643.0,2.74499039]
[1753321533440,7.217,3643.1,3643.0,2.88179039]
[1753321535348,4.217,3643.1,3643.0,2.88179039]
[1753321535657,0.002,3643.3,3643.2,2.7448397]
[1753321535860,4.218,3643.3,3643.2,2.7448397]
[1753321536161,0.002,3643.3,3643.2,2.7448397]
[1753321536364,0.002,3643.3,3643.2,3.3350397]
[1753321540636,0.002,3643.3,3643.2,2.8816397]
[1753321540838,1e-08,3643.4,3643.3,2.74476436]
[1753321541051,1e-08,3643.4,3643.3,3.9992522]
[1753321541756,1e-08,3643.4,3643.3,8.2142522]
[1753321541954,1e-08,3643.4,3643.3,8.20086436]
[1753321543533,1e-08,3643.4,3643.3,8.75086436]
[1753321543780,1e-08,3643.4,3643.3,11.01550534]